bitfinex-derivatives/quotes_BTCF0:USTF0_20250213
["timestamp","ask_amount","ask_price","bid_price","bid_amount"]
[1739461938406,0.3608,96311.0,96307.0,0.001]
[1739461938605,0.08012,96310.0,96301.0,0.20780645]
[1739461938807,0.3608,96311.0,96301.0,0.20780645]
[1739461938808,0.48513542,96311.0,96307.0,0.001]
[1739461939115,0.007,96309.0,96307.0,0.001]
[1739461939718,0.08712,96310.0,96307.0,0.001]
[1739461940013,0.2076363,96308.0,96307.0,0.001]
[1739461940407,0.2076363,96308.0,96301.0,0.00015575]
[1739461940607,0.2076363,96308.0,96307.0,0.001]
[1739461940913,0.007,96310.0,96307.0,0.001]
[1739461941114,0.08712,96309.0,96307.0,0.2086377]
[1739461941411,0.007,96309.0,96307.0,0.2086377]
[1739461942013,0.007,96308.0,96307.0,0.2086377]
[1739461942610,0.007,96308.0,96307.0,0.2848377]
[1739461942816,0.01115105,96314.0,96312.0,0.2076265]
[1739461943113,0.07765575,96320.0,96312.0,0.2076265]
[1739461943313,0.07765575,96320.0,96313.0,0.2076247]
[1739461943716,0.01110741,96319.0,96317.0,0.2076163]
[1739461943902,0.07765575,96320.0,96318.0,0.2076131]
[1739461944108,0.01153033,96320.0,96318.0,0.2076131]
[1739461944316,0.01153033,96320.0,96315.0,0.36164]
[1739461944508,0.01153033,96320.0,96315.0,0.3608]
[1739461945214,0.21914143,96320.0,96318.0,0.002]
[1739461945920,0.22114143,96320.0,96313.0,0.3608]
[1739461946102,0.01353033,96320.0,96313.0,0.3608]
[1739461946309,0.2076225,96315.0,96313.0,0.3608]
[1739461947015,0.2076234,96314.0,96313.0,0.3608]
[1739461947213,0.01353033,96320.0,96305.0,0.3608]
[1739461947406,0.2076492,96302.0,96296.0,0.0767]
[1739461947602,0.2076492,96302.0,96290.0,0.1468]
[1739461947912,0.2076492,96302.0,96295.0,0.2076643]
[1739461948101,0.2076492,96302.0,96294.0,0.3608]
[1739461948610,0.2076492,96302.0,96285.0,0.3608]
[1739461948810,0.2076492,96302.0,96285.0,0.5684853]
[1739461949115,0.2126492,96302.0,96285.0,0.3608]
[1739461949314,0.005,96302.0,96285.0,0.3608]
[1739461949510,0.005,96302.0,96290.0,0.12433542]
[1739461949715,0.005,96302.0,96301.0,0.20780715]
[1739461950021,0.005,96302.0,96301.0,0.00015575]
[1739461950022,0.2126492,96302.0,96301.0,0.00015575]
[1739461950716,0.2146492,96302.0,96301.0,0.00115575]
[1739461952008,0.2076492,96302.0,96301.0,0.00015575]
[1739461952212,0.2126492,96302.0,96301.0,0.00015575]
[1739461953516,0.5734492,96302.0,96301.0,1e-08]
[1739461953718,0.2076924,96282.0,96277.0,0.00155774]
[1739461954217,0.3608,96289.0,96284.0,0.2076871]
[1739461954408,0.3608,96289.0,96287.0,0.20768]
[1739461954813,0.08008,96293.0,96287.0,0.20768]
[1739461955016,0.0917241,96293.0,96280.0,0.5684946]
[1739461955217,0.207684,96286.0,96280.0,0.3608]
[1739461957119,0.2076909,96283.0,96280.0,0.3608]
[1739461957422,0.003,96286.0,96280.0,0.3608]
[1739461957619,0.2076988,96279.0,96278.0,0.00015575]
[1739461958216,0.2076988,96279.0,96277.0,0.00155774]
[1739461958217,0.2076988,96279.0,96277.0,1e-08]
[1739461959422,0.2076988,96279.0,96278.0,0.001]
[1739461959620,0.5684988,96279.0,96277.0,1e-08]
[1739461960015,0.2077204,96269.0,96268.0,0.00015575]
[1739461960522,0.5685204,96269.0,96268.0,0.00015575]
[1739461961222,0.2077478,96257.0,96248.0,0.5685639]
[1739461961423,0.3608,96269.0,96248.0,0.5685639]
[1739461961424,0.2077507,96255.0,96248.0,0.5685639]
[1739461961618,0.12433542,96260.0,96248.0,0.3608]
[1739461961824,0.2077592,96252.0,96248.0,0.3608]
[1739461962524,0.2077592,96252.0,96248.0,0.3638]
[1739461962923,0.0113797,96252.0,96248.0,0.3638]
[1739461963118,0.12433542,96260.0,96248.0,0.3638]
[1739461963313,0.2077586,96252.0,96248.0,0.3638]
[1739461963521,0.2077636,96249.0,96248.0,0.003]
[1739461964526,0.0774,96251.0,96239.0,0.00155846]
[1739461964728,0.12433542,96249.0,96248.0,0.007]
[1739461964925,0.2077636,96249.0,96248.0,0.007]
[1739461966228,0.2077636,96249.0,96248.0,0.004]
[1739461967718,0.2077636,96249.0,96239.0,0.00755846]
[1739461967719,0.207783,96240.0,96239.0,0.00155846]
[1739461967919,0.2078068,96229.0,96228.0,0.3608]
[1739461968622,0.12449126,96238.0,96220.0,0.0778]
[1739461968623,0.207824,96221.0,96220.0,0.0778]
[1739461969123,0.207824,96221.0,96208.0,0.00155874]
[1739461969124,0.20785,96209.0,96208.0,0.00155874]
[1739461969322,0.56865,96209.0,96208.0,0.00155874]
[1739461971621,0.2078672,96201.0,96200.0,0.1]
[1739461971822,0.5686672,96201.0,96200.0,0.1]
[1739461972821,0.5686672,96201.0,96200.0,0.102]
[1739461973532,0.5686672,96201.0,96171.0,0.00155953]
[1739461973533,0.0519676,96200.0,96171.0,0.00155953]
[1739461973717,0.12433542,96181.0,96172.0,0.2216]
[1739461973918,0.2079261,96174.0,96172.0,0.2216]
[1739461974722,0.2079261,96174.0,96172.0,0.2236]
[1739461975328,0.22211842,96174.0,96172.0,0.2236]
[1739461975631,0.3608,96173.0,96160.0,0.20084]
[1739461975832,0.3608,96173.0,96160.0,0.2]
[1739461975833,0.5687537,96161.0,96160.0,0.2]
[1739461976932,0.2079537,96161.0,96160.0,0.2]
[1739461977937,0.2089537,96161.0,96160.0,0.207]
[1739461979126,0.001,96161.0,96160.0,0.7727559]
[1739461979431,0.2079537,96161.0,96160.0,0.5648]
[1739461980128,0.22203072,96161.0,96160.0,0.5648]
[1739461980333,0.2079537,96161.0,96160.0,0.5648]
[1739461981040,0.2079537,96161.0,96160.0,0.7727559]
[1739461981232,0.2079397,96168.0,96160.0,0.5648]
[1739461981429,0.00015592,96170.0,96169.0,0.2079364]
[1739461981634,0.01416691,96170.0,96169.0,0.2079364]
[1739461981839,0.00015592,96170.0,96169.0,0.2079364]
[1739461982434,0.2079479,96165.0,96164.0,0.2079463]
[1739461982943,0.2079537,96161.0,96160.0,0.56164]
[1739461983129,0.2079537,96161.0,96160.0,0.5628]
[1739461983331,0.2079537,96161.0,96160.0,0.202]
[1739461983534,0.2079537,96161.0,96160.0,0.4099559]
[1739461983729,0.3608,96166.0,96160.0,0.202]
[1739461983937,0.5687432,96166.0,96161.0,0.2079537]
[1739461984134,0.2079537,96161.0,96160.0,0.2]
[1739461984735,0.2089537,96161.0,96160.0,0.202]
[1739461985441,0.2089537,96161.0,96160.0,0.206]
[1739461985844,0.001,96161.0,96160.0,0.4139559]
[1739461986839,0.001,96161.0,96160.0,0.206]
[1739461991852,0.001,96161.0,96133.0,0.0781]
[1739461991853,0.2079915,96144.0,96133.0,0.0781]
[1739461992053,0.12433542,96146.0,96133.0,0.0781]
[1739461992448,0.2080049,96138.0,96133.0,0.0781]
[1739461992653,0.2080121,96134.0,96133.0,0.0781]
[1739461992845,0.208022,96130.0,96123.0,0.0758]
[1739461993045,0.568822,96130.0,96123.0,0.0758]
[1739461993649,0.3608,96130.0,96123.0,0.0758]
[1739461993942,0.01422451,96130.0,96123.0,0.0758]
[1739461994149,0.2080078,96136.0,96124.0,0.3608]
[1739461994348,0.12433542,96133.0,96124.0,0.3608]
[1739461994547,0.13832703,96133.0,96124.0,0.3608]
[1739461994948,0.001,96130.0,96124.0,0.3608]
[1739461995344,0.2080297,96126.0,96124.0,0.3638]
[1739461995950,0.13932703,96133.0,96124.0,0.3638]
[1739461996151,0.001,96130.0,96124.0,0.3638]
[1739461996350,0.08008,96129.0,96124.0,0.3638]
[1739461996560,0.001,96130.0,96124.0,0.003]
[1739461996754,0.34734283,96133.0,96124.0,0.003]
[1739461996965,0.001,96126.0,96124.0,0.003]
[1739461997858,0.08108,96126.0,96124.0,0.003]
[1739461999455,0.001,96129.0,96124.0,0.003]
[1739462000260,0.08004,96131.0,96127.0,0.2080261]
[1739462000461,0.5688042,96138.0,96127.0,0.2080261]
[1739462000757,0.3608,96138.0,96131.0,0.2080178]
[1739462000961,0.3608,96138.0,96124.0,0.003]
[1739462001165,0.001,96129.0,96118.0,0.3608]
[1739462001358,0.001,96129.0,96128.0,0.3608]
[1739462002366,0.001,96129.0,96128.0,0.3628]
[1739462002569,0.2080213,96130.0,96128.0,0.3628]
[1739462003963,0.3608,96129.0,96128.0,0.002]
[1739462004167,0.3608,96129.0,96118.0,0.18439086]
[1739462004168,0.2080445,96119.0,96118.0,0.18439086]
[1739462005266,0.2080445,96119.0,96118.0,0.18939086]
[1739462006358,0.0741,96120.0,96118.0,0.39743676]
[1739462007361,0.0741,96120.0,96118.0,0.18939086]
[1739462007671,0.0751,96120.0,96118.0,0.18939086]
[1739462007967,0.283144,96120.0,96118.0,0.18939086]
[1739462009071,0.283144,96120.0,96118.0,0.005]
[1739462009072,0.0751,96120.0,96118.0,0.005]
[1739462009264,0.0751,96120.0,96118.0,0.2130466]
[1739462010163,0.001,96120.0,96118.0,0.2130466]
[1739462013164,0.001,96120.0,96119.0,0.2080445]
[1739462014363,0.001,96120.0,96119.0,0.2120445]
[1739462015568,0.2080317,96125.0,96124.0,0.2080337]
[1739462015766,0.2080317,96125.0,96124.0,0.5688337]
[1739462016869,0.2090317,96125.0,96124.0,0.5688337]
[1739462017074,0.001,96125.0,96124.0,0.5718337]
[1739462021070,0.3608,96143.0,96124.0,0.4158079]
[1739462021373,0.3608,96143.0,96142.0,0.9295948]
[1739462021374,0.00060001,96143.0,96142.0,0.9295948]
[1739462021565,0.2262,96167.0,96144.0,0.2079904]
[1739462021764,0.12433542,96160.0,96144.0,0.2079904]
[1739462021968,0.01459291,96147.0,96144.0,0.2079904]
[1739462022174,0.2079864,96146.0,96144.0,0.2079904]
[1739462022373,0.01459291,96147.0,96144.0,0.2079904]
[1739462022970,0.00456089,96145.0,96144.0,0.2079904]
[1739462023774,0.00856089,96145.0,96144.0,0.2079904]
[1739462024277,0.00556089,96145.0,96144.0,0.2079904]
[1739462024468,0.00256089,96145.0,96144.0,0.2079904]
[1739462024671,0.36236089,96145.0,96120.0,0.3710699]
[1739462024877,0.2080294,96126.0,96121.0,0.2833395]
[1739462025174,0.12433542,96135.0,96121.0,0.2080395]
[1739462025377,0.2080362,96123.0,96121.0,0.2080395]
[1739462025672,0.2080402,96121.0,96120.0,0.11358484]
[1739462026069,0.2080402,96121.0,96120.0,0.2080424]
[1739462026268,0.001,96126.0,96123.0,0.2080353]
[1739462026472,0.2090307,96126.0,96123.0,0.2080353]
[1739462026673,0.2080445,96119.0,96118.0,0.3608]
[1739462027771,0.22204242,96119.0,96118.0,0.3608]
[1739462028165,0.22204242,96119.0,96118.0,0.3658]
[1739462028379,0.01399792,96119.0,96118.0,0.5738467]
[1739462028573,0.001,96121.0,96118.0,0.5738467]
[1739462028775,0.01461517,96121.0,96118.0,0.3658]
[1739462028977,0.2090437,96121.0,96120.0,0.2080424]
[1739462029170,0.2080437,96121.0,96120.0,0.2080424]
[1739462029367,0.2080445,96119.0,96118.0,0.36668]
[1739462029570,0.2080445,96119.0,96118.0,0.3658]
[1739462029974,0.01327438,96121.0,96119.0,9.941e-05]
[1739462030172,0.2080424,96120.0,96119.0,9.941e-05]
[1739462031080,0.2080424,96120.0,96119.0,0.00409941]
[1739462031888,0.2090424,96120.0,96119.0,0.00409941]
[1739462033782,0.3619424,96120.0,96119.0,0.00409941]
[1739462033980,0.7227424,96120.0,96119.0,0.00409941]
[1739462034184,0.7227424,96120.0,96100.0,0.1]
[1739462034185,0.5147,96120.0,96100.0,0.1]
[1739462034379,0.2080835,96101.0,96100.0,0.1]
[1739462034586,0.2080835,96101.0,96100.0,0.3080857]
[1739462034881,0.5688835,96101.0,96100.0,0.1]
[1739462035085,0.5688835,96101.0,96070.0,0.12433542]
[1739462035086,0.0520218,96100.0,96061.0,0.00096]
[1739462035271,0.0520218,96100.0,96064.0,0.5154818]
[1739462035272,0.2081532,96069.0,96064.0,0.5154818]
[1739462035475,0.12433542,96074.0,96065.0,0.2081614]
[1739462035683,0.2081595,96066.0,96064.0,0.3073181]
[1739462035886,0.12433542,96074.0,96064.0,0.3073181]
[1739462036074,0.0774,96080.0,96064.0,0.3073181]
[1739462036075,0.0774,96080.0,96078.0,0.2081331]
[1739462037177,0.09095121,96080.0,96078.0,0.2081331]
[1739462037783,0.29908131,96080.0,96078.0,0.2081331]
[1739462037983,0.09095121,96080.0,96078.0,0.2081331]
[1739462038184,0.09095121,96080.0,96078.0,0.2091331]
[1739462038380,0.01355121,96080.0,96078.0,0.2091331]
[1739462038586,0.1258968,96100.0,96088.0,0.2081117]
[1739462038587,0.0756,96089.0,96088.0,0.2081117]
[1739462038784,0.089193,96089.0,96088.0,0.2081117]
[1739462039185,0.089193,96089.0,96078.0,0.002]
[1739462039186,0.2081291,96080.0,96078.0,0.002]
[1739462039484,0.013593,96089.0,96044.0,0.36878172]
[1739462039485,0.4364,96079.0,96044.0,0.36878172]
[1739462039681,0.12433542,96070.0,96051.0,0.6681181]
[1739462039887,0.1474,96069.0,96051.0,0.6681181]
[1739462040083,0.2081888,96053.0,96051.0,0.6681181]
[1739462040288,0.3608,96052.0,96051.0,0.094216]
[1739462040483,0.4364,96052.0,96051.0,0.094216]
[1739462040981,0.44957374,96052.0,96051.0,0.096216]
[1739462041485,0.44957374,96052.0,96044.0,0.36966172]
[1739462041790,0.2082048,96045.0,96044.0,0.36878172]
[1739462042479,0.45013375,96052.0,96044.0,0.36878172]
[1739462042691,0.45057374,96052.0,96051.0,0.003]
[1739462043284,0.001,96045.0,96044.0,0.004]
[1739462043586,0.081,96045.0,96044.0,0.004]
[1739462043788,0.08,96045.0,96044.0,0.004]
[1739462044287,0.08,96045.0,96014.0,0.00156228]
[1739462044482,0.2082697,96016.0,96014.0,0.00156228]
[1739462044781,0.2082763,96013.0,96002.0,0.3608]
[1739462044990,0.3608,96011.0,96002.0,0.3608]
[1739462045282,0.2082872,96007.0,96002.0,0.3608]
[1739462045483,0.2082872,96007.0,95997.0,0.36974172]
[1739462046683,0.22171303,96007.0,95997.0,0.36974172]
[1739462047184,0.22371303,96007.0,95997.0,0.36974172]
[1739462047981,0.22571303,96007.0,95997.0,0.36974172]
[1739462048384,0.22571303,96007.0,95997.0,0.00096]
[1739462048688,0.22571303,96007.0,95991.0,0.3608]
[1739462048894,0.2082919,96005.0,95991.0,0.3608]
[1739462049495,0.01542583,96007.0,95991.0,0.3608]
[1739462049797,0.01342583,96007.0,96006.0,0.3608]
[1739462049987,0.0726,96019.0,96006.0,0.3608]
[1739462050188,0.08004,96018.0,96006.0,0.3608]
[1739462050589,0.2082634,96018.0,96006.0,0.3608]
[1739462050997,0.22144818,96018.0,96006.0,0.3608]
[1739462051291,0.22144818,96018.0,96000.0,0.5102607]
[1739462051490,0.2082673,96017.0,96003.0,0.3608]
[1739462051689,0.2082806,96011.0,96003.0,0.3608]
[1739462051892,0.2082842,96009.0,96003.0,0.3608]
[1739462052100,0.18755926,96013.0,96006.0,0.002]
[1739462052687,0.18755926,96013.0,96003.0,0.3608]
[1739462053099,0.18755926,96013.0,96000.0,0.3]
[1739462053301,0.3608,96011.0,96000.0,0.3]
[1739462053500,0.2082964,96003.0,96000.0,0.3]
[1739462053699,0.36136001,96011.0,96000.0,0.3]
[1739462053895,0.44084,96011.0,96000.0,0.3]
[1739462054296,0.6491192,96011.0,96000.0,0.3]
[1739462054489,0.2082792,96011.0,96000.0,0.3]
[1739462054692,0.18855926,96013.0,96000.0,0.3]
[1739462054693,0.18955926,96013.0,96000.0,0.3]
[1739462054903,0.2082861,96008.0,96001.0,0.3608]
[1739462055197,0.2082888,96007.0,96000.0,0.3]
[1739462055398,0.2082904,96006.0,96000.0,0.301]
[1739462055593,0.3608,96012.0,96000.0,0.301]
[1739462055794,0.01378114,96018.0,96008.0,0.3608]
[1739462056002,0.00156286,96029.0,96016.0,0.2082674]
[1739462056196,0.3743903,96020.0,96016.0,0.2082674]
[1739462056403,0.5826504,96020.0,96009.0,0.1446]
[1739462056598,0.77020966,96020.0,96009.0,0.1446]
[1739462057099,0.56194956,96020.0,96011.0,0.2082778]
[1739462057298,0.2082787,96011.0,96009.0,0.0721]
[1739462057499,0.56350957,96020.0,96001.0,0.0746]
[1739462057697,0.2082925,96005.0,96001.0,0.0736]
[1739462057897,0.2082925,96005.0,96003.0,0.2082953]
[1739462058500,0.22145385,96005.0,96003.0,0.2082953]
[1739462059596,0.01316135,96005.0,96003.0,0.2082953]
[1739462059796,0.18755926,96011.0,96001.0,0.0736]
[1739462060004,0.208288,96007.0,96001.0,0.2819]
[1739462060201,0.208288,96007.0,96002.0,0.2082975]
[1739462060402,0.22206041,96007.0,96005.0,0.2082913]
[1739462061106,0.01377241,96007.0,96001.0,0.0736]
[1739462061296,0.2082957,96004.0,96001.0,0.0736]
[1739462061894,0.2082971,96003.0,96000.0,0.3]
[1739462062102,0.2083003,96001.0,96000.0,0.3]
[1739462064102,0.5691003,96001.0,96000.0,0.301]
[1739462065808,0.3608,96001.0,96000.0,0.301]
[1739462066108,0.08004,96001.0,96000.0,0.301]
[1739462066793,0.0773,96006.0,96000.0,0.301]
[1739462067007,0.2855895,96006.0,96000.0,0.5093022]
[1739462067208,0.2082948,96004.0,96000.0,0.5093022]
[1739462067399,0.2082948,96004.0,96001.0,0.2082996]
[1739462068204,0.0773,96006.0,96000.0,0.301]
[1739462068405,0.2083003,96001.0,96000.0,0.301]
[1739462068804,0.2083003,96001.0,96000.0,0.3]
[1739462069515,0.2082942,96004.0,96000.0,0.5083024]
[1739462070109,0.2082975,96003.0,96000.0,0.5083024]
[1739462070508,0.0773,96006.0,96005.0,0.2082916]
[1739462070712,0.00056001,96026.0,96000.0,0.6608]
[1739462071008,0.12511614,96010.0,96001.0,0.0737]
[1739462071217,0.33339784,96010.0,96004.0,0.2082929]
[1739462071412,0.2082844,96009.0,96004.0,0.2082929]
[1739462071611,0.0737,96016.0,96009.0,0.2082829]
[1739462071809,0.0737,96016.0,96001.0,0.0737]
[1739462072031,0.2082964,96003.0,96000.0,0.30488]
[1739462072323,0.3608,96008.0,96000.0,0.306]
[1739462072531,0.2083003,96001.0,96000.0,0.306]
[1739462072729,0.2083003,96001.0,96000.0,0.304]
[1739462073924,0.5690859,96008.0,96000.0,0.304]
[1739462074130,0.3608,96008.0,96000.0,0.304]
[1739462074330,0.2082902,96006.0,96000.0,0.304]
[1739462075033,0.3608,96008.0,96006.0,0.2082887]
[1739462076032,0.3608,96008.0,96004.0,0.002]
[1739462076033,0.01333717,96009.0,96008.0,0.2082851]
[1739462076223,0.15462092,96015.0,96000.0,0.3]
[1739462076424,0.002,96008.0,96006.0,0.2082894]
[1739462076625,0.18682915,96007.0,96006.0,0.2082894]
[1739462076928,0.18682915,96007.0,96006.0,0.22203534]
[1739462077129,0.18682915,96007.0,96006.0,0.36913534]
[1739462077626,0.18682915,96007.0,96006.0,0.3553894]
[1739462078432,0.00015619,96025.0,96024.0,0.2082504]
[1739462078626,0.00064,96031.0,96028.0,0.2082417]
[1739462078936,0.3608,96047.0,96028.0,0.2082417]
[1739462079229,0.2082473,96026.0,96024.0,0.3608]
[1739462079432,0.12511614,96040.0,96024.0,0.3608]
[1739462079629,0.12511614,96040.0,96027.0,0.2082426]
[1739462079834,0.22903732,96029.0,96024.0,0.3608]
[1739462080032,0.21580247,96029.0,96024.0,0.3608]
[1739462080337,0.208243,96028.0,96026.0,0.2082457]
[1739462082033,0.210243,96028.0,96026.0,0.2082457]
[1739462082234,0.213243,96028.0,96026.0,0.2082457]
[1739462082433,0.211243,96028.0,96026.0,0.2082457]
[1739462082629,0.006,96028.0,96024.0,0.3608]
[1739462082835,0.2082482,96025.0,96024.0,0.5690501]
[1739462084340,0.2082482,96025.0,96017.0,0.00015619]
[1739462084341,0.2082634,96018.0,96017.0,0.00015619]
[1739462085536,0.2082634,96018.0,96017.0,0.00115619]
[1739462087626,0.2082292,96034.0,96017.0,0.36195619]
[1739462087834,0.3608,96046.0,96017.0,0.57022169]
[1739462087835,0.004,96018.0,96017.0,0.57022169]
[1739462089141,0.15603678,96023.0,96017.0,0.36195619]
[1739462089342,0.002,96018.0,96017.0,0.57022169]
[1739462089740,0.15603678,96023.0,96022.0,0.2082547]
[1739462091143,0.36428928,96023.0,96022.0,0.2082547]
[1739462091742,0.2219743,96029.0,96017.0,0.36487619]
[1739462091943,0.2219743,96029.0,96017.0,0.36395619]
[1739462092145,0.2082427,96028.0,96027.0,0.2082418]
[1739462092336,0.2082565,96022.0,96021.0,0.2082563]
[1739462092537,0.2082425,96028.0,96027.0,0.2082416]
[1739462093441,0.2112425,96028.0,96027.0,0.2082416]
[1739462093830,0.01664761,96029.0,96022.0,0.01699837]
[1739462094036,0.002,96028.0,96027.0,0.2082439]
[1739462094540,0.2162417,96028.0,96027.0,0.2082439]
[1739462095644,0.006,96028.0,96017.0,0.36095619]
[1739462095944,0.2082554,96022.0,96017.0,0.36095619]
[1739462096341,0.22509188,96022.0,96021.0,0.2082548]
[1739462097248,0.2082634,96018.0,96017.0,0.00103619]
[1739462097548,0.2082634,96018.0,96017.0,0.00015619]
[1739462098337,0.01783648,96022.0,96017.0,0.00015619]
[1739462099144,0.2082626,96019.0,96018.0,0.2082629]
[1739462100449,0.005,96019.0,96017.0,0.00015619]
[1739462100637,0.2132629,96019.0,96017.0,0.00015619]
[1739462100840,0.2182629,96019.0,96017.0,0.00015619]
[1739462101243,0.23757372,96018.0,96017.0,0.00015619]
[1739462102150,0.23757372,96018.0,96017.0,0.01735119]
[1739462102449,0.23757372,96018.0,96017.0,0.00015619]
[1739462102650,0.23957372,96018.0,96017.0,0.00015619]
[1739462103149,0.24057372,96018.0,96017.0,0.00015619]
[1739462103549,0.23757372,96018.0,96017.0,0.00115619]
[1739462104337,0.23757372,96018.0,96017.0,0.01789075]
[1739462104551,0.23757372,96018.0,96017.0,0.00115619]
[1739462105142,0.61552319,96018.0,96000.0,0.30096]
[1739462105340,0.3608,96001.0,95974.0,0.24788598]
[1739462105549,0.2204,96017.0,95965.0,0.31069297]
[1739462105550,0.3608,95975.0,95965.0,0.31069297]
[1739462105753,0.2083762,95966.0,95965.0,0.31069297]
[1739462106440,0.20832185,95966.0,95965.0,0.31069297]
[1739462106848,0.2083936,95958.0,95957.0,0.35378173]
[1739462107048,0.5691936,95958.0,95957.0,0.35378173]
[1739462107244,0.5691936,95958.0,95940.0,0.0015633]
[1739462107245,0.2084305,95941.0,95940.0,0.0015633]
[1739462108151,0.2251978,95941.0,95940.0,0.01828841]
[1739462108349,0.2251978,95941.0,95940.0,0.0015633]
[1739462108545,0.2084652,95925.0,95924.0,0.43024534]
[1739462108947,0.3608,95934.0,95928.0,0.2084567]
[1739462109144,0.3608,95934.0,95924.0,0.43024534]
[1739462109349,0.2084642,95926.0,95924.0,0.43024534]
[1739462109545,0.5692642,95926.0,95924.0,0.43024534]
[1739462109847,0.001,95925.0,95924.0,0.43524534]
[1739462110047,0.0783,95925.0,95924.0,0.43524534]
[1739462110452,0.0783,95925.0,95924.0,0.43124534]
[1739462110657,0.0783,95925.0,95917.0,0.0006]
[1739462110852,0.2084744,95921.0,95911.0,0.3608]
[1739462111049,0.2826776,95920.0,95911.0,0.3608]
[1739462111244,0.0742,95920.0,95911.0,0.3608]
[1739462111446,0.07996,95919.0,95911.0,0.3608]
[1739462112154,0.3608,95917.0,95900.0,0.1]
[1739462112352,0.3608,95917.0,95907.0,0.2085025]
[1739462112552,0.3608,95917.0,95905.0,0.3608]
[1739462112752,0.2084982,95910.0,95905.0,0.3608]
[1739462113164,0.3608,95906.0,95878.0,0.3608]
[1739462113357,0.3608,95906.0,95878.0,0.5693658]
[1739462113358,0.54882863,95888.0,95878.0,0.5693658]
[1739462113856,0.54882863,95888.0,95868.0,0.3608]
[1739462113857,0.54882863,95888.0,95868.0,0.5693882]
[1739462114151,0.54882863,95888.0,95868.0,0.3608]
[1739462114362,0.54882863,95888.0,95872.0,0.2085805]
[1739462114549,0.54882863,95888.0,95877.0,0.3608]
[1739462114855,0.54882863,95888.0,95851.0,0.208626]
[1739462114856,0.2085875,95869.0,95851.0,0.208626]
[1739462115160,0.3608,95864.0,95846.0,0.3608]
[1739462115364,0.2086059,95861.0,95846.0,0.3608]
[1739462115558,0.18802863,95863.0,95846.0,0.3608]
[1739462115866,0.3608,95864.0,95836.0,0.2086584]
[1739462115867,0.3608,95853.0,95836.0,0.2086584]
[1739462116165,0.2086286,95850.0,95834.0,0.3608]
[1739462116351,0.2086286,95850.0,95834.0,0.2086628]
[1739462116560,0.3608,95864.0,95839.0,0.3608]
[1739462116869,0.00015645,95852.0,95839.0,0.3608]
[1739462117057,0.00015645,95852.0,95843.0,0.2086419]
[1739462117366,0.01737732,95852.0,95847.0,0.2086346]
[1739462117670,0.00015645,95852.0,95851.0,0.2086262]
[1739462117964,0.0166479,95852.0,95851.0,0.2086262]
[1739462118163,0.001,95863.0,95851.0,0.89]
[1739462118360,0.001,95869.0,95849.0,0.3608]
[1739462118361,0.001,95869.0,95862.0,0.3608]
[1739462118661,0.001,95864.0,95863.0,0.2086001]
[1739462119364,0.0188452,95884.0,95878.0,0.2085667]
[1739462120153,0.0188452,95884.0,95874.0,0.3608]
[1739462120154,0.00015645,95891.0,95882.0,0.3608]
[1739462120359,0.00015645,95891.0,95890.0,0.5693414]
[1739462121459,0.1556228,95896.0,95890.0,0.3608]
[1739462121765,0.17276753,95896.0,95895.0,0.2085305]
[1739462121970,0.17276753,95896.0,95890.0,0.3608]
[1739462122461,0.014,95891.0,95890.0,0.3608]
[1739462122858,0.014,95891.0,95882.0,0.3608]
[1739462123058,0.2085562,95884.0,95882.0,0.3608]
[1739462123957,0.18802863,95892.0,95881.0,0.00015645]
[1739462123958,0.2085588,95882.0,95881.0,0.00015645]
[1739462125675,0.2085805,95872.0,95871.0,0.00156457]
[1739462125862,0.208598,95864.0,95861.0,0.3608]
[1739462127170,0.208598,95864.0,95861.0,0.3618]
[1739462127468,0.2085862,95870.0,95861.0,0.3618]
[1739462127659,0.00015645,95872.0,95861.0,0.3618]
[1739462128369,0.2085971,95865.0,95861.0,0.3628]
[1739462128572,0.00015645,95872.0,95861.0,0.3618]
[1739462128764,0.00015645,95872.0,95871.0,0.5693827]
[1739462129170,0.00156501,95890.0,95889.0,0.2085435]
[1739462129363,0.00156501,95890.0,95889.0,0.5693435]
[1739462130266,0.00556501,95890.0,95889.0,0.5693435]
[1739462131669,0.00556501,95890.0,95884.0,0.3608]
[1739462131968,0.2085534,95885.0,95880.0,0.00015645]
[1739462132270,0.2085534,95885.0,95880.0,0.20871875]
[1739462132671,0.2085534,95885.0,95882.0,0.2085582]
[1739462132865,0.00756501,95890.0,95884.0,0.3608]
[1739462133070,0.00756501,95890.0,95888.0,0.2085438]
[1739462134772,0.00356501,95890.0,95888.0,0.2085438]
[1739462134975,0.00015645,95899.0,95898.0,0.208524]
[1739462135165,0.00015645,95899.0,95898.0,0.569324]
[1739462136371,0.77152,95927.0,95898.0,0.3608]
[1739462136571,0.77208001,95927.0,95916.0,0.2084827]
[1739462136768,0.00056001,95927.0,95913.0,0.3608]
[1739462136974,0.3608,95929.0,95920.0,0.2084746]
[1739462137170,0.18690751,95924.0,95920.0,0.2084746]
[1739462137367,0.18690751,95924.0,95913.0,0.5692899]
[1739462137562,0.2084881,95915.0,95913.0,0.3608]
[1739462137872,0.18690751,95924.0,95912.0,0.00015645]
[1739462137873,0.2084914,95913.0,95912.0,0.00015645]
[1739462138570,0.2085345,95894.0,95885.0,0.208551]
[1739462138874,0.18802863,95900.0,95880.0,0.3608]
[1739462139070,0.2085364,95893.0,95880.0,0.3608]
[1739462139270,0.2085364,95893.0,95886.0,0.2085496]
[1739462139568,0.3608,95901.0,95880.0,0.54882863]
[1739462139873,0.00015645,95899.0,95880.0,0.36095645]
[1739462140068,0.004,95894.0,95886.0,0.2085496]
[1739462140268,0.2085419,95890.0,95886.0,0.2085496]
[1739462141277,0.002,95894.0,95880.0,0.36259645]
[1739462141577,0.208529,95896.0,95880.0,0.55098508]
[1739462141777,0.2085321,95895.0,95887.0,0.208547]
[1739462142078,0.2085332,95894.0,95887.0,0.208547]
[1739462142378,0.002,95890.0,95887.0,0.208547]
[1739462142863,0.2085353,95893.0,95887.0,0.208547]
[1739462143062,0.2085376,95892.0,95887.0,0.208547]
[1739462143372,0.15853135,95894.0,95893.0,0.2085349]
[1739462144568,0.15553135,95894.0,95893.0,0.1915349]
[1739462145670,0.15753135,95894.0,95893.0,0.1915349]
[1739462145978,0.16053135,95894.0,95893.0,0.1915349]
[1739462146183,0.15753135,95894.0,95893.0,0.1915349]
[1739462146369,0.16053135,95894.0,95893.0,0.1915349]